[Event "*** Titled Tuesday Blitz"]
[Site "Chess.com"]
[Date "2020.04.28"]
[Round "3"]
[White "nickmatta"]
[Black "violetflower04"]
[Result "1-0"]
[WhiteElo "2414"]
[BlackElo "2199"]
[TimeControl "180+1"]
[EndTime "10:29:42 PDT"]
[Termination "nickmatta won on time"]

1. d4 {[%clk 0:03:00.9]} 1... d5 {[%clk 0:03:00]} 2. c4 {[%clk 0:02:59.3]} 2...
e6 {[%clk 0:03:00.5]} 3. Nc3 {[%clk 0:02:58.7]} 3... Nf6 {[%clk 0:03:01.1]} 4.
cxd5 {[%clk 0:02:58.5]} 4... exd5 {[%clk 0:03:02]} 5. Bg5 {[%clk 0:02:58]} 5...
Be7 {[%clk 0:03:02.7]} 6. e3 {[%clk 0:02:58.2]} 6... O-O {[%clk 0:03:03.4]} 7.
Bd3 {[%clk 0:02:54.4]} 7... Nbd7 {[%clk 0:03:03]} 8. Nge2 {[%clk 0:02:50.8]}
8... c5 {[%clk 0:03:02.9]} 9. O-O {[%clk 0:02:44.5]} 9... Re8 {[%clk 0:02:59.2]}
10. dxc5 {[%clk 0:02:39.9]} 10... Nxc5 {[%clk 0:03:00.1]} 11. Bb5 {[%clk
0:02:40.4]} 11... Bd7 {[%clk 0:02:51.9]} 12. Bxd7 {[%clk 0:02:36.9]} 12... Qxd7
{[%clk 0:02:52.8]} 13. Bxf6 {[%clk 0:02:36.7]} 13... Bxf6 {[%clk 0:02:53.7]} 14.
Qxd5 {[%clk 0:02:37]} 14... Qxd5 {[%clk 0:02:32.1]} 15. Nxd5 {[%clk 0:02:37.9]}
15... Bxb2 {[%clk 0:02:32.8]} 16. Nc7 {[%clk 0:02:28.1]} 16... Bxa1 {[%clk
0:02:30]} 17. Rxa1 {[%clk 0:02:29]} 17... Ne6 {[%clk 0:02:16.6]} 18. Nxa8 {[%clk
0:02:26.2]} 18... Rxa8 {[%clk 0:02:17.5]} 19. Rc1 {[%clk 0:02:04]} 19... Kf8
{[%clk 0:02:07.2]} 20. Kf1 {[%clk 0:02:01.8]} 20... Ke7 {[%clk 0:02:07.4]} 21.
Nc3 {[%clk 0:01:54.5]} 21... Kd6 {[%clk 0:01:52.3]} 22. Ke2 {[%clk 0:01:42.9]}
22... Kc5 {[%clk 0:01:44.1]} 23. Ne4+ {[%clk 0:01:36.6]} 23... Kb4 {[%clk
0:01:44.2]} 24. Nd6 {[%clk 0:01:32.7]} 24... b6 {[%clk 0:01:31]} 25. Nxf7 {[%clk
0:01:31.2]} 25... Nc5 {[%clk 0:01:28.6]} 26. Ne5 {[%clk 0:01:27.1]} 26... Ka3
{[%clk 0:01:20]} 27. Rc2 {[%clk 0:01:23.8]} 27... Rd8 {[%clk 0:01:17.9]} 28. f4
{[%clk 0:01:13.3]} 28... Na4 {[%clk 0:00:58.2]} 29. g4 {[%clk 0:01:04.6]} 29...
b5 {[%clk 0:00:44.4]} 30. g5 {[%clk 0:00:51.7]} 30... Nb2 {[%clk 0:00:24.3]} 31.
Rc7 {[%clk 0:00:48.1]} 31... a6 {[%clk 0:00:20.1]} 32. Rxg7 {[%clk 0:00:40.3]}
32... Ra8 {[%clk 0:00:17.7]} 33. f5 {[%clk 0:00:28.6]} 33... b4 {[%clk
0:00:17.6]} 34. Rb7 {[%clk 0:00:25.7]} 34... a5 {[%clk 0:00:15]} 35. f6 {[%clk
0:00:22.9]} 35... Kxa2 {[%clk 0:00:15]} 36. f7 {[%clk 0:00:22.8]} 36... b3
{[%clk 0:00:14.2]} 37. Nd7 {[%clk 0:00:19.8]} 37... Rd8 {[%clk 0:00:06]} 38.
f8=Q {[%clk 0:00:19.3]} 38... Rxf8 {[%clk 0:00:06.7]} 39. Nxf8 {[%clk
0:00:20.2]} 39... Nc4 {[%clk 0:00:06.1]} 40. Nxh7 {[%clk 0:00:19.8]} 40... Nd6
{[%clk 0:00:05.6]} 41. Rb6 {[%clk 0:00:17]} 41... Ne8 {[%clk 0:00:02.4]} 42. Nf6
{[%clk 0:00:14.3]} 42... Ng7 {[%clk 0:00:02.1]} 43. Nd5 {[%clk 0:00:13.7]} 43...
a4 {[%clk 0:00:02.6]} 44. Nc3+ {[%clk 0:00:13.6]} 44... Ka1 {[%clk 0:00:03]} 45.
Nxa4 {[%clk 0:00:13.4]} 45... b2 {[%clk 0:00:02.5]} 46. Nxb2 {[%clk 0:00:12.8]}
46... Nf5 {[%clk 0:00:02.5]} 47. Nd3 {[%clk 0:00:11.6]} 47... Ka2 {[%clk
0:00:02.1]} 48. g6 {[%clk 0:00:10.5]} 1-0

[Event "*** Titled Tuesday Blitz"]
[Site "Chess.com"]
[Date "2020.04.28"]
[Round "3"]
[White "Nafania1"]
[Black "RaphaeI"]
[Result "1/2-1/2"]
[WhiteElo "2372"]
[BlackElo "2639"]
[TimeControl "180+1"]
[EndTime "10:29:43 PDT"]
[Termination "Game drawn by repetition"]

1. e4 {[%clk 0:03:00.9]} 1... c5 {[%clk 0:02:59.4]} 2. Nf3 {[%clk 0:03:00.9]}
2... d6 {[%clk 0:02:59.4]} 3. Bb5+ {[%clk 0:03:01]} 3... Nd7 {[%clk 0:02:58.6]}
4. c3 {[%clk 0:03:00.8]} 4... Nf6 {[%clk 0:02:55.3]} 5. Bd3 {[%clk 0:03:00.5]}
5... g6 {[%clk 0:02:41]} 6. Bc2 {[%clk 0:03:00]} 6... Bg7 {[%clk 0:02:40.4]} 7.
d4 {[%clk 0:03:00.2]} 7... O-O {[%clk 0:02:39.5]} 8. a4 {[%clk 0:03:00.4]} 8...
b6 {[%clk 0:02:25.6]} 9. O-O {[%clk 0:03:00]} 9... Bb7 {[%clk 0:02:23.3]} 10.
Re1 {[%clk 0:03:00.2]} 10... Qc7 {[%clk 0:02:16.5]} 11. Nbd2 {[%clk 0:03:00.1]}
11... Rac8 {[%clk 0:02:13.6]} 12. Bd3 {[%clk 0:03:00.3]} 12... Qb8 {[%clk
0:01:50]} 13. Nf1 {[%clk 0:02:43.5]} 13... cxd4 {[%clk 0:01:27.2]} 14. cxd4
{[%clk 0:02:43.1]} 14... e5 {[%clk 0:01:27.8]} 15. d5 {[%clk 0:02:43.1]} 15...
Nc5 {[%clk 0:01:28]} 16. Bc2 {[%clk 0:02:36.1]} 16... a5 {[%clk 0:01:28.2]} 17.
Ng3 {[%clk 0:02:31.4]} 17... Ba6 {[%clk 0:01:27.4]} 18. h3 {[%clk 0:02:31.3]}
18... Rc7 {[%clk 0:01:27.4]} 19. Be3 {[%clk 0:02:30.9]} 19... Rfc8 {[%clk
0:01:27.4]} 20. Rc1 {[%clk 0:02:30.7]} 20... b5 {[%clk 0:01:13.4]} 21. axb5
{[%clk 0:02:22.6]} 21... Qxb5 {[%clk 0:01:14.3]} 22. Bd2 {[%clk 0:02:13.5]}
22... Nd3 {[%clk 0:00:30.8]} 23. Bxd3 {[%clk 0:02:12.8]} 23... Qxd3 {[%clk
0:00:18.8]} 24. Rxc7 {[%clk 0:02:11.4]} 24... Rxc7 {[%clk 0:00:19.2]} 25. Bxa5
{[%clk 0:02:08.5]} 25... Rc2 {[%clk 0:00:19.3]} 26. Qxd3 {[%clk 0:02:05.2]}
26... Bxd3 {[%clk 0:00:19.4]} 27. Bc3 {[%clk 0:02:01.1]} 27... h5 {[%clk
0:00:17.6]} 28. Ra1 {[%clk 0:01:55.9]} 28... Nxe4 {[%clk 0:00:16.8]} 29. Ne1
{[%clk 0:01:08.7]} 29... Nxg3 {[%clk 0:00:12.5]} 30. Nxc2 {[%clk 0:01:03.1]}
30... Ne2+ {[%clk 0:00:09.9]} 31. Kh1 {[%clk 0:00:57]} 31... Nxc3 {[%clk
0:00:09.6]} 32. Nb4 {[%clk 0:00:49.2]} 32... Nxd5 {[%clk 0:00:09.3]} 33. Nxd5
{[%clk 0:00:46.8]} 33... e4 {[%clk 0:00:09.8]} 34. Ra8+ {[%clk 0:00:43.2]} 34...
Kh7 {[%clk 0:00:10.2]} 35. Nc3 {[%clk 0:00:35.6]} 35... d5 {[%clk 0:00:09.2]}
36. Rd8 {[%clk 0:00:34.1]} 36... d4 {[%clk 0:00:09.1]} 37. Na4 {[%clk
0:00:29.6]} 37... Bf6 {[%clk 0:00:08.4]} 38. Rd7 {[%clk 0:00:29.2]} 38... Kg7
{[%clk 0:00:07.4]} 39. Nc5 {[%clk 0:00:27.8]} 39... Bb5 {[%clk 0:00:07.6]} 40.
Rb7 {[%clk 0:00:24.8]} 40... Bc6 {[%clk 0:00:07.1]} 41. Rc7 {[%clk 0:00:25]}
41... Bd5 {[%clk 0:00:06.1]} 42. Rd7 {[%clk 0:00:24.1]} 42... Bc6 {[%clk
0:00:05.8]} 43. Rd6 {[%clk 0:00:23.5]} 43... Ba8 {[%clk 0:00:04.9]} 44. Ra6
{[%clk 0:00:20.2]} 44... Bd5 {[%clk 0:00:04.1]} 45. Rd6 {[%clk 0:00:19.5]} 45...
Ba8 {[%clk 0:00:04]} 46. Ra6 {[%clk 0:00:15.3]} 46... Bd5 {[%clk 0:00:03.5]} 47.
Rd6 {[%clk 0:00:15.3]} 47... Ba8 {[%clk 0:00:03.6]} 1/2-1/2

[Event "*** Titled Tuesday Blitz"]
[Site "Chess.com"]
[Date "2020.04.28"]
[Round "3"]
[White "monalize"]
[Black "Mourinho_Jose"]
[Result "0-1"]
[WhiteElo "2366"]
[BlackElo "2570"]
[TimeControl "180+1"]
[EndTime "10:29:43 PDT"]
[Termination "Mourinho_Jose won on time"]

1. e4 {[%clk 0:03:00.9]} 1... c6 {[%clk 0:02:58.5]} 2. Nc3 {[%clk 0:02:58.6]}
2... d5 {[%clk 0:02:58.7]} 3. d4 {[%clk 0:02:57.1]} 3... dxe4 {[%clk 0:02:58.6]}
4. Nxe4 {[%clk 0:02:57.8]} 4... Bf5 {[%clk 0:02:58.8]} 5. Ng3 {[%clk 0:02:57.5]}
5... Bg6 {[%clk 0:02:58.9]} 6. Nh3 {[%clk 0:02:56.7]} 6... e6 {[%clk 0:02:56.3]}
7. Nf4 {[%clk 0:02:56.1]} 7... Nf6 {[%clk 0:02:52.6]} 8. h4 {[%clk 0:02:55.4]}
8... Bd6 {[%clk 0:02:34.1]} 9. h5 {[%clk 0:02:54.7]} 9... Bf5 {[%clk 0:02:32.5]}
10. Nxf5 {[%clk 0:02:50.3]} 10... exf5 {[%clk 0:02:33.4]} 11. Qe2+ {[%clk
0:02:45.7]} 11... Be7 {[%clk 0:02:26]} 12. Qd3 {[%clk 0:02:42.3]} 12... O-O
{[%clk 0:02:11.7]} 13. Be3 {[%clk 0:02:31.6]} 13... Qa5+ {[%clk 0:02:08.3]} 14.
c3 {[%clk 0:02:29.6]} 14... Nbd7 {[%clk 0:02:00.4]} 15. b4 {[%clk 0:02:08.8]}
15... Qa3 {[%clk 0:01:59.4]} 16. Bc1 {[%clk 0:02:06.2]} 16... Qa4 {[%clk
0:01:57.2]} 17. Qxf5 {[%clk 0:01:57]} 17... Rfe8 {[%clk 0:01:56.5]} 18. Be2
{[%clk 0:01:50.7]} 18... Bxb4 {[%clk 0:01:30]} 19. cxb4 {[%clk 0:01:44.4]} 19...
Qxb4+ {[%clk 0:01:30.9]} 20. Bd2 {[%clk 0:01:34.9]} 20... Qxd4 {[%clk
0:01:28.7]} 21. Rd1 {[%clk 0:01:25.9]} 21... Qc4 {[%clk 0:00:59.3]} 22. Be3
{[%clk 0:01:11.5]} 22... Qb4+ {[%clk 0:00:51.8]} 23. Kf1 {[%clk 0:01:08.4]}
23... Re5 {[%clk 0:00:43.2]} 24. Qc2 {[%clk 0:01:06.8]} 24... Rae8 {[%clk
0:00:34.4]} 25. Rh3 {[%clk 0:01:01.2]} 25... Nb6 {[%clk 0:00:23.3]} 26. Bd4
{[%clk 0:00:35.8]} 26... Re4 {[%clk 0:00:23.5]} 27. Bxf6 {[%clk 0:00:30.8]}
27... gxf6 {[%clk 0:00:23.8]} 28. Nd3 {[%clk 0:00:21.4]} 28... Qe7 {[%clk
0:00:18.6]} 29. Rg3+ {[%clk 0:00:20.6]} 29... Kf8 {[%clk 0:00:17.8]} 30. Re1
{[%clk 0:00:19.9]} 30... Nd5 {[%clk 0:00:16.8]} 31. Qd2 {[%clk 0:00:19]} 31...
Qe6 {[%clk 0:00:15.1]} 32. Qh6+ {[%clk 0:00:17.7]} 32... Ke7 {[%clk 0:00:15.7]}
33. Qxh7 {[%clk 0:00:12.2]} 33... Kd6 {[%clk 0:00:11]} 34. h6 {[%clk 0:00:09.2]}
34... Rxe2 {[%clk 0:00:10.8]} 35. Rxe2 {[%clk 0:00:07.7]} 35... Qxe2+ {[%clk
0:00:11.7]} 36. Kg1 {[%clk 0:00:08.2]} 36... Qd1+ {[%clk 0:00:11.9]} 37. Kh2
{[%clk 0:00:08.1]} 37... Qh5+ {[%clk 0:00:12]} 38. Rh3 {[%clk 0:00:04.8]} 38...
Qg5 {[%clk 0:00:11.6]} 39. Qg7 {[%clk 0:00:02.4]} 39... Qxg7 {[%clk 0:00:06.6]}
40. hxg7 {[%clk 0:00:02.8]} 40... Rg8 {[%clk 0:00:07.5]} 41. Rg3 {[%clk
0:00:03]} 41... Ne7 {[%clk 0:00:06.9]} 42. Rg5 {[%clk 0:00:01.6]} 42... fxg5
{[%clk 0:00:06.8]} 0-1

[Event "*** Titled Tuesday Blitz"]
[Site "Chess.com"]
[Date "2020.04.28"]
[Round "3"]
[White "ElHelvetico"]
[Black "wonderfultime"]
[Result "0-1"]
[WhiteElo "2647"]
[BlackElo "2937"]
[TimeControl "180+1"]
[EndTime "10:29:44 PDT"]
[Termination "wonderfultime won by resignation"]

1. e4 {[%clk 0:03:00.9]} 1... c5 {[%clk 0:02:59.7]} 2. Nf3 {[%clk 0:03:00.2]}
2... Nf6 {[%clk 0:03:00.1]} 3. e5 {[%clk 0:02:59.7]} 3... Nd5 {[%clk 0:03:00.4]}
4. Nc3 {[%clk 0:03:00.2]} 4... e6 {[%clk 0:03:01]} 5. Nxd5 {[%clk 0:02:59.2]}
5... exd5 {[%clk 0:03:01.9]} 6. d4 {[%clk 0:02:59.9]} 6... Nc6 {[%clk
0:03:02.1]} 7. dxc5 {[%clk 0:03:00.2]} 7... Bxc5 {[%clk 0:03:03]} 8. Qxd5 {[%clk
0:03:00.8]} 8... d6 {[%clk 0:03:03.6]} 9. Bc4 {[%clk 0:02:37]} 9... Be6 {[%clk
0:02:56.8]} 10. Qd3 {[%clk 0:02:35.2]} 10... dxe5 {[%clk 0:01:36.5]} 11. Bxe6
{[%clk 0:02:26.7]} 11... fxe6 {[%clk 0:01:25.5]} 12. Qxd8+ {[%clk 0:02:09.9]}
12... Rxd8 {[%clk 0:01:26.4]} 13. O-O {[%clk 0:02:09.9]} 13... O-O {[%clk
0:01:19.7]} 14. c3 {[%clk 0:02:00.2]} 14... e4 {[%clk 0:01:18.4]} 15. Nd4 {[%clk
0:00:35.7]} 15... e5 {[%clk 0:01:02.8]} 16. Ne6 {[%clk 0:00:35.6]} 16... Bxf2+
{[%clk 0:00:51.6]} 17. Kh1 {[%clk 0:00:35.9]} 17... e3 {[%clk 0:00:52.2]} 18.
Bxe3 {[%clk 0:00:28.1]} 18... Bxe3 {[%clk 0:00:51.8]} 19. Nxf8 {[%clk
0:00:28.7]} 19... Rxf8 {[%clk 0:00:52.4]} 20. Rxf8+ {[%clk 0:00:27.3]} 20...
Kxf8 {[%clk 0:00:53.3]} 21. Re1 {[%clk 0:00:27.1]} 21... Bb6 {[%clk 0:00:52.1]}
22. g3 {[%clk 0:00:27.2]} 22... Ke7 {[%clk 0:00:51.9]} 23. Kg2 {[%clk
0:00:27.9]} 23... Ke6 {[%clk 0:00:52.5]} 24. Kf3 {[%clk 0:00:28.5]} 24... Ne7
{[%clk 0:00:50.3]} 25. Re4 {[%clk 0:00:28.5]} 25... Nd5 {[%clk 0:00:48]} 26. Rc4
{[%clk 0:00:21.9]} 26... Ne7 {[%clk 0:00:48]} 27. Re4 {[%clk 0:00:20.7]} 27...
Nf5 {[%clk 0:00:47.7]} 28. Rc4 {[%clk 0:00:18.9]} 28... Nd6 {[%clk 0:00:48.1]}
29. Rh4 {[%clk 0:00:18.9]} 29... h6 {[%clk 0:00:48]} 30. b3 {[%clk 0:00:16.8]}
30... e4+ {[%clk 0:00:46]} 31. Ke2 {[%clk 0:00:17.4]} 31... Ke5 {[%clk
0:00:45.8]} 32. Rh5+ {[%clk 0:00:15.5]} 32... Ke6 {[%clk 0:00:45.9]} 33. a4
{[%clk 0:00:13.4]} 33... Bd8 {[%clk 0:00:32.9]} 34. Rc5 {[%clk 0:00:11.5]} 34...
b6 {[%clk 0:00:31.5]} 35. Rh5 {[%clk 0:00:08.3]} 35... Bg5 {[%clk 0:00:29.6]}
36. Rh3 {[%clk 0:00:08.3]} 36... Kf5 {[%clk 0:00:28.3]} 37. g4+ {[%clk
0:00:07.7]} 37... Kxg4 {[%clk 0:00:28.6]} 38. Rg3+ {[%clk 0:00:08.6]} 38... Kf5
{[%clk 0:00:28.6]} 39. Rg2 {[%clk 0:00:09.4]} 39... Bf6 {[%clk 0:00:27.6]} 40.
Kd2 {[%clk 0:00:09.1]} 40... Ke5 {[%clk 0:00:24.1]} 41. Ke3 {[%clk 0:00:08.5]}
41... Nf5+ {[%clk 0:00:23.3]} 42. Kd2 {[%clk 0:00:09.4]} 42... h5 {[%clk
0:00:20.9]} 43. Re2 {[%clk 0:00:09.7]} 43... Bg5+ {[%clk 0:00:20]} 44. Kc2
{[%clk 0:00:09.2]} 44... Ne3+ {[%clk 0:00:20.4]} 45. Kb2 {[%clk 0:00:09.6]}
45... Nd5 {[%clk 0:00:20.7]} 46. b4 {[%clk 0:00:09.3]} 46... Nf4 {[%clk
0:00:20.7]} 47. Rc2 {[%clk 0:00:08.4]} 47... Nd3+ {[%clk 0:00:20.8]} 48. Kb3
{[%clk 0:00:09.3]} 48... e3 {[%clk 0:00:21.3]} 49. Kc4 {[%clk 0:00:09.4]} 49...
Nf4 {[%clk 0:00:18.9]} 50. Rc1 {[%clk 0:00:08.9]} 50... e2 {[%clk 0:00:18.8]}
51. Rg1 {[%clk 0:00:09]} 51... Bh4 {[%clk 0:00:18.9]} 0-1

[Event "*** Titled Tuesday Blitz"]
[Site "Chess.com"]
[Date "2020.04.28"]
[Round "3"]
[White "Fandorine"]
[Black "capatl"]
[Result "1/2-1/2"]
[WhiteElo "2887"]
[BlackElo "2656"]
[TimeControl "180+1"]
[EndTime "10:29:45 PDT"]
[Termination "Game drawn by repetition"]

1. e4 {[%clk 0:03:00.9]} 1... c5 {[%clk 0:02:59.7]} 2. Nf3 {[%clk 0:02:58.9]}
2... e6 {[%clk 0:03:00.1]} 3. d4 {[%clk 0:02:54.6]} 3... cxd4 {[%clk 0:03:01]}
4. Nxd4 {[%clk 0:02:54.8]} 4... a6 {[%clk 0:03:01.9]} 5. Bd3 {[%clk 0:02:54.5]}
5... Qc7 {[%clk 0:02:59.7]} 6. O-O {[%clk 0:02:53.2]} 6... d6 {[%clk 0:02:59.9]}
7. c4 {[%clk 0:02:51.6]} 7... Nd7 {[%clk 0:03:00.1]} 8. b3 {[%clk 0:02:49.2]}
8... Ngf6 {[%clk 0:02:59.5]} 9. Nc3 {[%clk 0:02:43.2]} 9... b5 {[%clk
0:02:58.5]} 10. Qc2 {[%clk 0:02:29.5]} 10... bxc4 {[%clk 0:02:45.9]} 11. Bxc4
{[%clk 0:02:30.2]} 11... Ne5 {[%clk 0:02:33]} 12. Be2 {[%clk 0:02:27.8]} 12...
Bb7 {[%clk 0:02:26.4]} 13. Be3 {[%clk 0:02:24.6]} 13... Rc8 {[%clk 0:02:23.4]}
14. Rac1 {[%clk 0:02:24]} 14... Be7 {[%clk 0:01:53.4]} 15. h3 {[%clk 0:02:23.7]}
15... O-O {[%clk 0:01:53.2]} 16. Rfd1 {[%clk 0:02:24.1]} 16... Nxe4 {[%clk
0:01:37]} 17. Nxe4 {[%clk 0:02:16.9]} 17... Qxc2 {[%clk 0:01:37]} 18. Nxc2
{[%clk 0:01:52]} 18... Bxe4 {[%clk 0:01:36.1]} 19. Nb4 {[%clk 0:01:38.9]} 19...
a5 {[%clk 0:01:32.4]} 20. Na6 {[%clk 0:01:37.9]} 20... Bb7 {[%clk 0:01:09]} 21.
Bb6 {[%clk 0:01:15.6]} 21... Rc6 {[%clk 0:00:48.1]} 22. Rxc6 {[%clk 0:01:06.4]}
22... Nxc6 {[%clk 0:00:49]} 23. Rc1 {[%clk 0:01:03.5]} 23... Ra8 {[%clk
0:00:35.6]} 24. Nc7 {[%clk 0:00:46]} 24... Rc8 {[%clk 0:00:32.3]} 25. Nb5 {[%clk
0:00:45.3]} 25... Nb4 {[%clk 0:00:23.7]} 26. Rxc8+ {[%clk 0:00:29.3]} 26... Bxc8
{[%clk 0:00:24.6]} 27. a4 {[%clk 0:00:25.4]} 27... Nc6 {[%clk 0:00:22.4]} 28.
Nc3 {[%clk 0:00:12]} 28... d5 {[%clk 0:00:19.5]} 29. Bb5 {[%clk 0:00:12.2]}
29... Bb4 {[%clk 0:00:20]} 30. Nxd5 {[%clk 0:00:12.2]} 30... exd5 {[%clk
0:00:19.8]} 31. Bxc6 {[%clk 0:00:12.6]} 31... Be6 {[%clk 0:00:18.5]} 32. Bd4
{[%clk 0:00:13]} 32... f6 {[%clk 0:00:17.3]} 33. Kf1 {[%clk 0:00:13.4]} 33...
Kf7 {[%clk 0:00:17.4]} 34. Ke2 {[%clk 0:00:13.9]} 34... Ke7 {[%clk 0:00:17.9]}
35. Bb5 {[%clk 0:00:13.9]} 35... Kd6 {[%clk 0:00:18.8]} 36. Bd3 {[%clk
0:00:13.2]} 36... h6 {[%clk 0:00:17.5]} 37. g4 {[%clk 0:00:13.2]} 37... Bc5
{[%clk 0:00:16.1]} 38. Ke3 {[%clk 0:00:12.8]} 38... Bb4 {[%clk 0:00:14.8]} 39.
f3 {[%clk 0:00:12.1]} 39... Kc6 {[%clk 0:00:13.2]} 40. h4 {[%clk 0:00:10.7]}
40... Kd6 {[%clk 0:00:12.8]} 41. h5 {[%clk 0:00:11]} 41... Bd7 {[%clk
0:00:12.4]} 42. Bf5 {[%clk 0:00:10.6]} 42... Bxf5 {[%clk 0:00:11.8]} 43. gxf5
{[%clk 0:00:10.7]} 43... Kc6 {[%clk 0:00:12.7]} 44. Kd3 {[%clk 0:00:11.1]} 44...
Kd6 {[%clk 0:00:13.6]} 45. Ke3 {[%clk 0:00:07.1]} 45... Bc5 {[%clk 0:00:12.9]}
46. Kd3 {[%clk 0:00:07]} 46... Bb4 {[%clk 0:00:13.2]} 47. Ke3 {[%clk 0:00:07.3]}
1/2-1/2

[Event "*** Titled Tuesday Blitz"]
[Site "Chess.com"]
[Date "2020.04.28"]
[Round "3"]
[White "XDPS"]
[Black "Andrei_Belozerov"]
[Result "1-0"]
[WhiteElo "2773"]
[BlackElo "2590"]
[TimeControl "180+1"]
[EndTime "10:29:45 PDT"]
[Termination "XDPS won by checkmate"]

1. d4 {[%clk 0:02:59.7]} 1... d5 {[%clk 0:02:59.6]} 2. Nf3 {[%clk 0:02:59.1]}
2... Nf6 {[%clk 0:02:58.6]} 3. Bf4 {[%clk 0:02:59.3]} 3... c5 {[%clk 0:02:58]}
4. e3 {[%clk 0:02:59.3]} 4... Nc6 {[%clk 0:02:57.4]} 5. Nbd2 {[%clk 0:02:58.8]}
5... e6 {[%clk 0:02:56.2]} 6. c3 {[%clk 0:02:58.2]} 6... Bd6 {[%clk 0:02:55.1]}
7. Bg3 {[%clk 0:02:58.8]} 7... O-O {[%clk 0:02:52.9]} 8. Bb5 {[%clk 0:02:58.7]}
8... Be7 {[%clk 0:02:51.8]} 9. Bd3 {[%clk 0:02:57.7]} 9... b6 {[%clk 0:02:27.5]}
10. Qe2 {[%clk 0:02:55.8]} 10... Bb7 {[%clk 0:02:26.8]} 11. Rd1 {[%clk
0:02:55.6]} 11... Rc8 {[%clk 0:02:09.2]} 12. a3 {[%clk 0:02:42.7]} 12... Re8
{[%clk 0:01:56.2]} 13. O-O {[%clk 0:02:27.2]} 13... Bd6 {[%clk 0:01:53.4]} 14.
Ne5 {[%clk 0:02:26.1]} 14... Ne7 {[%clk 0:01:50.9]} 15. Bb5 {[%clk 0:02:18.4]}
15... Rf8 {[%clk 0:01:49.8]} 16. Nd7 {[%clk 0:02:06.6]} 16... Nxd7 {[%clk
0:01:41.9]} 17. Bxd6 {[%clk 0:02:05.8]} 17... Nf6 {[%clk 0:01:41.8]} 18. Be5
{[%clk 0:02:01.7]} 18... Ng6 {[%clk 0:01:41.2]} 19. Bg3 {[%clk 0:02:01.3]} 19...
Qe7 {[%clk 0:01:39.4]} 20. Bd3 {[%clk 0:01:50.2]} 20... Ne4 {[%clk 0:01:35.6]}
21. Bxe4 {[%clk 0:01:44.9]} 21... dxe4 {[%clk 0:01:35]} 22. dxc5 {[%clk
0:01:43.9]} 22... Qxc5 {[%clk 0:01:33.9]} 23. Nb3 {[%clk 0:01:38.2]} 23... Qc6
{[%clk 0:01:18.1]} 24. Nd4 {[%clk 0:01:33]} 24... Qa4 {[%clk 0:01:13.9]} 25.
Rfe1 {[%clk 0:00:43.5]} 25... Ba6 {[%clk 0:01:11.1]} 26. Qg4 {[%clk 0:00:43.6]}
26... Bd3 {[%clk 0:01:09.2]} 27. h4 {[%clk 0:00:41.3]} 27... h6 {[%clk
0:00:53.2]} 28. h5 {[%clk 0:00:41.2]} 28... Ne7 {[%clk 0:00:50.3]} 29. Be5
{[%clk 0:00:41.6]} 29... f6 {[%clk 0:00:47.2]} 30. Nxe6 {[%clk 0:00:34.8]} 30...
Rf7 {[%clk 0:00:46.9]} 31. Bxf6 {[%clk 0:00:33.2]} 31... Qd7 {[%clk 0:00:43.3]}
32. Bxg7 {[%clk 0:00:29.3]} 32... Nf5 {[%clk 0:00:38.4]} 33. Bd4+ {[%clk
0:00:21.9]} 33... Ng7 {[%clk 0:00:32.6]} 34. Bxg7 {[%clk 0:00:21.3]} 34... Rxg7
{[%clk 0:00:32.3]} 35. Qxg7+ {[%clk 0:00:22.2]} 35... Qxg7 {[%clk 0:00:31.9]}
36. Nxg7 {[%clk 0:00:23.1]} 36... Kxg7 {[%clk 0:00:32.1]} 37. f3 {[%clk
0:00:23.7]} 37... Kf6 {[%clk 0:00:31.7]} 38. fxe4 {[%clk 0:00:24]} 38... Bxe4
{[%clk 0:00:31.9]} 39. Rd6+ {[%clk 0:00:24.3]} 39... Kg5 {[%clk 0:00:31.7]} 40.
Re6 {[%clk 0:00:19.5]} 40... Bf5 {[%clk 0:00:30.9]} 41. Re7 {[%clk 0:00:19.6]}
41... Rd8 {[%clk 0:00:30.1]} 42. e4 {[%clk 0:00:19.6]} 42... Bg4 {[%clk
0:00:29.6]} 43. Rg7+ {[%clk 0:00:19.5]} 43... Kh4 {[%clk 0:00:28.3]} 44. e5
{[%clk 0:00:19.8]} 44... Rd2 {[%clk 0:00:27.5]} 45. Re4 {[%clk 0:00:19.4]} 45...
Rd1+ {[%clk 0:00:26.2]} 46. Kh2 {[%clk 0:00:19.6]} 46... Kxh5 {[%clk 0:00:27.1]}
47. Rexg4 {[%clk 0:00:18.6]} 47... b5 {[%clk 0:00:25.1]} 48. Rg3 {[%clk
0:00:18.5]} 48... Kh4 {[%clk 0:00:09]} 49. Rh3# {[%clk 0:00:18.2]} 1-0

[Event "*** Titled Tuesday Blitz"]
[Site "Chess.com"]
[Date "2020.04.28"]
[Round "3"]
[White "platy3"]
[Black "Jeffinho023"]
[Result "0-1"]
[WhiteElo "2746"]
[BlackElo "2559"]
[TimeControl "180+1"]
[EndTime "10:29:45 PDT"]
[Termination "Jeffinho023 won on time"]

1. e4 {[%clk 0:03:00.9]} 1... e5 {[%clk 0:02:59.5]} 2. Nf3 {[%clk 0:03:00.5]}
2... Nf6 {[%clk 0:02:59.9]} 3. Nxe5 {[%clk 0:02:58.9]} 3... d6 {[%clk
0:02:59.9]} 4. Nf3 {[%clk 0:02:59.4]} 4... Nxe4 {[%clk 0:03:00.1]} 5. d4 {[%clk
0:02:58.9]} 5... d5 {[%clk 0:02:59.9]} 6. Bd3 {[%clk 0:02:59.5]} 6... Be7 {[%clk
0:02:59.9]} 7. O-O {[%clk 0:02:57.7]} 7... O-O {[%clk 0:02:59.8]} 8. Nbd2 {[%clk
0:02:48.1]} 8... Nf6 {[%clk 0:02:57.6]} 9. Re1 {[%clk 0:02:47.4]} 9... c6 {[%clk
0:02:57.4]} 10. Nf1 {[%clk 0:02:44.2]} 10... Re8 {[%clk 0:02:57.1]} 11. Ng3
{[%clk 0:02:43.9]} 11... Bg4 {[%clk 0:02:56.4]} 12. h3 {[%clk 0:02:43.4]} 12...
Bxf3 {[%clk 0:02:56.4]} 13. Qxf3 {[%clk 0:02:44.3]} 13... Nbd7 {[%clk
0:02:56.4]} 14. Bd2 {[%clk 0:02:39.1]} 14... Bf8 {[%clk 0:02:53.6]} 15. h4
{[%clk 0:02:22.7]} 15... Qb6 {[%clk 0:02:48.5]} 16. Nf5 {[%clk 0:01:48.3]} 16...
Rxe1+ {[%clk 0:02:36.5]} 17. Rxe1 {[%clk 0:01:47.2]} 17... Qxb2 {[%clk
0:02:32.4]} 18. Qg3 {[%clk 0:01:46.3]} 18... g6 {[%clk 0:02:30.1]} 19. Ne7+
{[%clk 0:01:35.3]} 19... Bxe7 {[%clk 0:02:27.7]} 20. Rxe7 {[%clk 0:01:36.2]}
20... Qxd4 {[%clk 0:02:25.4]} 21. h5 {[%clk 0:01:30.8]} 21... Nxh5 {[%clk
0:02:18.3]} 22. Qc7 {[%clk 0:01:26.2]} 22... Ndf6 {[%clk 0:01:30.3]} 23. Qxb7
{[%clk 0:01:19.2]} 23... Rd8 {[%clk 0:01:18.8]} 24. Qxa7 {[%clk 0:01:11]} 24...
Qa1+ {[%clk 0:01:12.9]} 25. Re1 {[%clk 0:01:10.2]} 25... Qb2 {[%clk 0:01:07.9]}
26. Bh6 {[%clk 0:01:06.2]} 26... Ng4 {[%clk 0:00:51.7]} 27. Bg5 {[%clk
0:00:54.5]} 27... Qc3 {[%clk 0:00:38.6]} 28. Qe7 {[%clk 0:00:49.1]} 28... Rf8
{[%clk 0:00:31.4]} 29. a4 {[%clk 0:00:31.4]} 29... Qd4 {[%clk 0:00:30.7]} 30.
Qe2 {[%clk 0:00:29.2]} 30... Qxa4 {[%clk 0:00:24.6]} 31. c4 {[%clk 0:00:29.4]}
31... Ngf6 {[%clk 0:00:18.8]} 32. Bh6 {[%clk 0:00:28.5]} 32... dxc4 {[%clk
0:00:12.9]} 33. Bxc4 {[%clk 0:00:19.9]} 33... Ng7 {[%clk 0:00:10.3]} 34. Qe7
{[%clk 0:00:15.5]} 34... Qxc4 {[%clk 0:00:09]} 35. Qxf6 {[%clk 0:00:14.6]} 35...
Nh5 {[%clk 0:00:08.4]} 36. Qe5 {[%clk 0:00:10.5]} 36... Qd5 {[%clk 0:00:06.4]}
37. Bxf8 {[%clk 0:00:03.3]} 37... Qxe5 {[%clk 0:00:06.1]} 38. Rxe5 {[%clk
0:00:04.2]} 38... Kxf8 {[%clk 0:00:07]} 39. Rc5 {[%clk 0:00:04.4]} 39... Nf6
{[%clk 0:00:06.9]} 0-1